fUST/lending_fUST_20241201
["ID","MTS","AMOUNT","RATE_DAILY","PERIOD"]
[343888190,1732993017210,1169.27083333,0.0002,2]
[343888191,1732993112231,1169.27083333,0.0002,2]
[343888192,1732993156470,-999.0,0.00028,120]
[343888196,1732993242424,2000.0,0.00026,60]
[343888200,1732993437833,1169.27083333,0.0002,2]
[343888201,1732993451999,1481.62599717,0.00019998,2]
[343888202,1732993491092,2339.0,0.00026,60]
[343888207,1732993657333,1296.42274755,0.00019993,2]
[343888209,1732993706826,815.86989983,0.00019992,2]
[343888211,1732993753205,1000.0,0.00026,60]
[343888212,1732993763547,1169.27083333,0.0002,2]
[343888213,1732993787314,1932.35417597,0.0002,2]
[343888214,1732993796124,2144.00277475,0.0002,2]
[343888220,1732993831890,-413.34023013,0.0002,2]
[343888221,1732993831902,-616.81800008,0.0002,2]
[343888222,1732993831947,-139.11260312,0.0002,2]
[343888223,1732993831957,-176.35511159,0.00020088,2]
[343888224,1732993831967,-40.03228529,0.00020088,2]
[343888225,1732993831980,-259.96771471,0.00020088,2]
[343888226,1732993831989,-300.0,0.00020088,2]
[343888227,1732993831999,-4734.54977004,0.00020088,2]
[343888312,1732993843323,-373.738,0.00020087,2]
[343888328,1732993897764,1134.36990408,0.00019987,2]
[343888330,1732994101595,197.5651082,0.00019141,2]
[343888332,1732994158124,1169.27083333,0.0002,2]
[343888333,1732994168080,992.57366607,0.00019981,2]
[343888350,1732994379762,868.50195782,0.00019977,2]
[343888351,1732994391632,652.69591988,0.00019977,2]
[343888352,1732994478275,1169.27083333,0.0002,2]
[343888353,1732994584946,759.93921311,0.00019977,2]
[343888354,1732994676462,116630.30665118,0.00019972,2]
[343888355,1732994715531,1161.2005944,0.0001,2]
[343888356,1732994759057,158.0,0.00025999,60]
[343888357,1732994921751,2055.34538242,0.0002,30]
[343888375,1732995032068,-522.15673588,0.000199,2]
[343888376,1732995032077,-300.0,0.00019971,2]
[343888377,1732995032087,-664.94681148,0.00019971,2]
[343888378,1732995032097,-300.0,0.00019971,2]
[343888379,1732995032106,-1025.95058157,0.00019972,2]
[343888383,1732995032143,-734.0,0.00019972,2]
[343888385,1732995032155,-877.55305,0.00019972,2]
[343888387,1732995032167,-441.16836,0.00019972,2]
[343888408,1732995038076,-500.00228775,0.00019972,2]
[343888409,1732995038232,-1241.26275443,0.00019972,2]
[343888423,1732995043533,-428.93701363,0.00019972,2]
[343888430,1732995046544,-549.742494,0.00019972,2]
[343888444,1732995227964,5000.0,0.00026,60]
[343888445,1732995232747,669.93,0.000161,2]
[343888510,1732996238417,-382.26086858,0.00018622,2]
[343888515,1732996240224,-581.68913142,0.00018622,2]
[343888516,1732996240234,-2000.0,0.0001871,2]
[343888517,1732996240245,-193.28016579,0.00019,2]
[343888518,1732996240254,-581.82846001,0.00019898,2]
[343888519,1732996240264,-300.0,0.00019899,2]
[343888520,1732996240274,-300.0,0.00019899,2]
[343888521,1732996240284,-11938.35313705,0.000199,2]
[343888522,1732996240294,-246.0134,0.00019972,2]
[343888523,1732996240304,-246.0134,0.00019972,2]
[343888524,1732996240314,-151.0,0.00019972,2]
[343888525,1732996240323,-222.241636,0.00019972,2]
[343888526,1732996240333,-151.0,0.00019972,2]
[343888527,1732996240343,-151.0,0.00019972,2]
[343888528,1732996240353,-151.0,0.00019972,2]
[343888529,1732996240363,-355.77287,0.00019972,2]
[343888530,1732996240373,-355.77287,0.00019972,2]
[343888531,1732996240383,-355.77287,0.00019972,2]
[343888532,1732996240392,-355.77287,0.00019972,2]
[343888533,1732996240402,-151.0,0.00019972,2]
[343888534,1732996240412,-866.627753,0.00019972,2]
[343888535,1732996240421,-866.627753,0.00019972,2]
[343888536,1732996240431,-151.0,0.00019972,2]
[343888537,1732996240440,-151.0,0.00019972,2]
[343888538,1732996240451,-151.0,0.00019972,2]
[343888539,1732996240460,-151.0,0.00019972,2]
[343888540,1732996240470,-151.0,0.00019972,2]
[343888541,1732996240479,-151.0,0.00019972,2]
[343888542,1732996240489,-1272.444388,0.00019972,2]
[343888543,1732996240498,-1272.444388,0.00019972,2]
[343888544,1732996240508,-151.0,0.00019972,2]
[343888545,1732996240518,-151.0,0.00019972,2]
[343888547,1732996240527,-151.0,0.00019972,2]
[343888551,1732996240624,-151.0,0.00019972,2]
[343888552,1732996240634,-161.814609,0.00019972,2]
[343888553,1732996240647,-500.0,0.00019973,2]
[343888554,1732996240663,-151.0,0.00019977,2]
[343888555,1732996240673,-417.72538872,0.00019977,2]
[343888556,1732996240683,-151.0,0.00019977,2]
[343888557,1732996240693,-151.0,0.00019977,2]
[343888558,1732996240703,-151.0,0.00019977,2]
[343888559,1732996240713,-151.0,0.00019977,2]
[343888560,1732996240722,-1000.0,0.00019987,2]
[343888561,1732996240731,-297.08371485,0.00019997,2]
[343888562,1732996240742,-490.0,0.00019997,2]
[343888563,1732996240751,-500.0,0.00019997,2]
[343888564,1732996240762,-414.29393012,0.00019997,2]
[343888565,1732996240772,-500.0,0.00019997,2]
[343888566,1732996240782,-492.357521,0.00019997,2]
[343888567,1732996240792,-500.0,0.00019997,2]
[343888568,1732996240802,-500.0,0.00019997,2]
[343888569,1732996240812,-500.0,0.00019997,2]
[343888570,1732996240821,-500.0,0.00019997,2]
[343888571,1732996240831,-500.0,0.00019997,2]
[343888572,1732996240840,-500.0,0.00019997,2]
[343888573,1732996240850,-500.0,0.00019997,2]
[343888574,1732996240860,-500.0,0.00019997,2]
[343888575,1732996240869,-500.0,0.00019997,2]
[343888576,1732996240879,-500.0,0.00019997,2]
[343888577,1732996240889,-151.0,0.00019998,2]
[343888578,1732996240898,-151.0,0.00019998,2]
[343888579,1732996240907,-182.248729,0.00019998,2]
[343888580,1732996240917,-355.77287,0.00019998,2]
[343888581,1732996240927,-355.77287,0.00019998,2]
[343888582,1732996240941,-355.77287,0.00019998,2]
[343888583,1732996240959,-355.77287,0.00019998,2]
[343888584,1732996240968,-355.77287,0.00019998,2]
[343888585,1732996240980,-355.77287,0.00019998,2]
[343888586,1732996240991,-355.77287,0.00019998,2]
[343888587,1732996241003,-355.77287,0.00019998,2]
[343888588,1732996241012,-355.77287,0.00019998,2]
[343888589,1732996241024,-355.77287,0.00019998,2]
[343888590,1732996241033,-355.77287,0.00019998,2]
[343888591,1732996241043,-355.77287,0.00019998,2]
[343888592,1732996241053,-355.77287,0.00019998,2]
[343888593,1732996241065,-355.77287,0.00019998,2]
[343888594,1732996241075,-866.627753,0.00019998,2]
[343888595,1732996241085,-866.627753,0.00019998,2]
[343888596,1732996241095,-866.627753,0.00019998,2]
[343888597,1732996241105,-866.627753,0.00019998,2]
[343888598,1732996241114,-866.627753,0.00019998,2]
[343888599,1732996241124,-866.627753,0.00019998,2]
[343888600,1732996241134,-866.627753,0.00019998,2]
[343888601,1732996241143,-866.627753,0.00019998,2]
[343888602,1732996241153,-866.627753,0.00019998,2]
[343888603,1732996241162,-866.627753,0.00019998,2]
[343888604,1732996241172,-866.627753,0.00019998,2]
[343888605,1732996241183,-866.627753,0.00019998,2]
[343888606,1732996241192,-866.627753,0.00019998,2]
[343888607,1732996241202,-866.627753,0.00019998,2]
[343888608,1732996241212,-866.627753,0.00019998,2]
[343888609,1732996241222,-866.627753,0.00019998,2]
[343888610,1732996241235,-160.418674,0.00019998,2]
[343888611,1732996241247,-151.0,0.00019998,2]
[343888612,1732996241258,-151.0,0.00019998,2]
[343888613,1732996241269,-151.0,0.00019998,2]
[343888614,1732996241279,-151.0,0.00019998,2]
[343888615,1732996241297,-151.0,0.00019998,2]
[343888616,1732996241316,-151.0,0.00019998,2]
[343888617,1732996241326,-151.0,0.00019998,2]
[343888618,1732996241335,-151.0,0.00019998,2]
[343888619,1732996241345,-151.0,0.00019998,2]
[343888620,1732996241355,-151.0,0.00019998,2]
[343888621,1732996241365,-151.0,0.00019998,2]
[343888622,1732996241376,-280.432698,0.00019998,2]
[343888623,1732996241386,-1272.444388,0.00019998,2]
[343888624,1732996241395,-1272.444388,0.00019998,2]
[343888625,1732996241405,-1272.444388,0.00019998,2]
[343888626,1732996241414,-1272.444388,0.00019998,2]
[343888627,1732996241423,-1272.444388,0.00019998,2]
[343888628,1732996241433,-1272.444388,0.00019998,2]
[343888629,1732996241443,-1272.444388,0.00019998,2]
[343888630,1732996241454,-1272.444388,0.00019998,2]
[343888631,1732996241462,-1272.444388,0.00019998,2]
[343888632,1732996241472,-1272.444388,0.00019998,2]
[343888633,1732996241481,-1272.444388,0.00019998,2]
[343888634,1732996241490,-1272.444388,0.00019998,2]
[343888635,1732996241499,-1272.444388,0.00019998,2]
[343888636,1732996241508,-1272.444388,0.00019998,2]
[343888637,1732996241517,-1272.444388,0.00019998,2]
[343888638,1732996241527,-1272.444388,0.00019998,2]
[343888639,1732996241536,-151.0,0.00019998,2]
[343888640,1732996241545,-151.0,0.00019998,2]
[343888641,1732996241554,-151.0,0.00019998,2]
[343888642,1732996241568,-151.0,0.00019998,2]
[343888643,1732996241577,-151.0,0.00019998,2]
[343888644,1732996241586,-151.0,0.00019998,2]
[343888645,1732996241596,-151.0,0.00019998,2]
[343888646,1732996241605,-213.880915,0.00019998,2]
[343888647,1732996241615,-253.90752244,0.00019998,2]
[343888648,1732996241624,-459.1003937,0.00019998,2]
[343888649,1732996241633,-235.12928716,0.00019998,2]
[343888650,1732996241642,-257.64860242,0.00019998,2]
[343888651,1732996241651,-151.0,0.00019999,2]
[343888652,1732996241661,-154.303186,0.00019999,2]
[343888653,1732996241670,-151.0,0.00019999,2]
[343888654,1732996241679,-151.0,0.00019999,2]
[343888655,1732996241689,-151.0,0.00019999,2]
[343888656,1732996241698,-151.0,0.00019999,2]
[343888657,1732996241707,-151.0,0.00019999,2]
[343888658,1732996241716,-151.0,0.00019999,2]
[343888659,1732996241726,-151.0,0.00019999,2]
[343888660,1732996241735,-151.0,0.00019999,2]
[343888661,1732996241744,-237.682737,0.00019999,2]
[343888662,1732996241753,-151.0,0.00019999,2]
[343888663,1732996241763,-151.0,0.00019999,2]
[343888664,1732996241772,-151.0,0.00019999,2]
[343888665,1732996241781,-151.0,0.00019999,2]
[343888666,1732996241791,-181.547394,0.00019999,2]
[343888667,1732996241800,-397.285174,0.00019999,2]
[343888668,1732996241810,-397.285174,0.00019999,2]
[343888669,1732996241819,-397.285174,0.00019999,2]
[343888670,1732996241828,-397.285174,0.00019999,2]
[343888671,1732996241838,-397.285174,0.00019999,2]
[343888672,1732996241847,-397.285174,0.00019999,2]
[343888673,1732996241857,-397.285174,0.00019999,2]
[343888674,1732996241866,-397.285174,0.00019999,2]
[343888675,1732996241875,-397.285174,0.00019999,2]
[343888676,1732996241884,-397.285174,0.00019999,2]
[343888677,1732996241898,-397.285174,0.00019999,2]
[343888678,1732996241908,-397.285174,0.00019999,2]
[343888679,1732996241917,-151.0,0.00019999,2]
[343888680,1732996241927,-151.0,0.00019999,2]
[343888681,1732996241936,-254.21592,0.00019999,2]
[343888682,1732996241946,-1525.412715,0.00019999,2]
[343888683,1732996241955,-1525.412715,0.00019999,2]
[343888684,1732996241965,-1525.412715,0.00019999,2]
[343888685,1732996241978,-1525.412715,0.00019999,2]
[343888686,1732996241988,-1525.412715,0.00019999,2]
[343888687,1732996242064,-1525.412715,0.00019999,2]
[343888688,1732996242074,-1525.412715,0.00019999,2]
[343888689,1732996242083,-1525.412715,0.00019999,2]
[343888690,1732996242094,-1525.412715,0.00019999,2]
[343888691,1732996242103,-1525.412715,0.00019999,2]
[343888692,1732996242113,-1525.412715,0.00019999,2]
[343888693,1732996242123,-1525.412715,0.00019999,2]
[343888694,1732996242132,-276.82164,0.00019999,2]
[343888695,1732996242141,-276.82164,0.00019999,2]
[343888696,1732996242151,-276.82164,0.00019999,2]
[343888697,1732996242160,-276.82164,0.00019999,2]
[343888698,1732996242169,-276.82164,0.00019999,2]
[343888699,1732996242178,-276.82164,0.00019999,2]
[343888700,1732996242187,-276.82164,0.00019999,2]
[343888701,1732996242196,-276.82164,0.00019999,2]
[343888702,1732996242206,-276.82164,0.00019999,2]
[343888703,1732996242215,-276.82164,0.00019999,2]
[343888704,1732996242225,-276.82164,0.00019999,2]
[343888705,1732996242235,-276.82164,0.00019999,2]
[343888706,1732996242246,-276.82164,0.00019999,2]
[343888707,1732996242256,-276.82164,0.00019999,2]
[343888708,1732996242268,-276.82164,0.00019999,2]
[343888709,1732996242278,-276.82164,0.00019999,2]
[343888710,1732996242288,-276.82164,0.00019999,2]
[343888711,1732996242298,-276.82164,0.00019999,2]
[343888712,1732996242308,-276.82164,0.00019999,2]
[343888713,1732996242319,-276.82165,0.00019999,2]
[343888714,1732996242328,-246.0134,0.00019999,2]
[343888715,1732996242337,-246.0134,0.00019999,2]
[343888716,1732996242347,-246.0134,0.00019999,2]
[343888717,1732996242358,-246.0134,0.00019999,2]
[343888718,1732996242369,-246.0134,0.00019999,2]
[343888719,1732996242379,-246.0134,0.00019999,2]
[343888720,1732996242388,-246.0134,0.00019999,2]
[343888721,1732996242397,-246.0134,0.00019999,2]
[343888722,1732996242407,-246.0134,0.00019999,2]
[343888723,1732996242416,-246.0134,0.00019999,2]
[343888724,1732996242425,-246.0134,0.00019999,2]
[343888725,1732996242434,-246.0134,0.00019999,2]
[343888726,1732996242443,-246.0134,0.00019999,2]
[343888727,1732996242452,-246.0134,0.00019999,2]
[343888728,1732996242461,-246.0134,0.00019999,2]
[343888729,1732996242471,-246.0134,0.00019999,2]
[343888730,1732996242480,-246.0134,0.00019999,2]
[343888731,1732996242489,-246.013396,0.00019999,2]
[343888732,1732996242508,-151.0,0.00019999,2]
[343888733,1732996242519,-151.0,0.00019999,2]
[343888734,1732996242528,-151.0,0.00019999,2]
[343888735,1732996242538,-151.0,0.00019999,2]
[343888736,1732996242549,-151.0,0.00019999,2]
[343888737,1732996242558,-151.0,0.00019999,2]
[343888738,1732996242570,-151.0,0.00019999,2]
[343888739,1732996242580,-151.0,0.00019999,2]
[343888740,1732996242590,-500.0,0.00019999,2]
[343888741,1732996242600,-355.77287,0.00019999,2]
[343888742,1732996242610,-355.772874,0.00019999,2]
[343888743,1732996242620,-866.627753,0.00019999,2]
[343888744,1732996242630,-866.62775,0.00019999,2]
[343888745,1732996242640,-1272.444388,0.00019999,2]
[343888746,1732996242650,-856.38583841,0.00019999,2]
[343888747,1732996242667,-350.21,0.00019999,2]
[343888748,1732996242679,-65.84854359,0.00019999,2]
[343888749,1732996242688,-876.02804641,0.0002,2]
[343888758,1732996243271,-293.24278692,0.0002,2]
[343888759,1732996243282,-154.096467,0.0002,2]
[343888760,1732996243291,-55.47656642,0.0002,2]
[343888761,1732996243453,-95.52343358,0.0002,2]
[343888762,1732996243463,-239.019887,0.0002,2]
[343888763,1732996243472,-239.019887,0.0002,2]
[343888764,1732996243482,-151.0,0.0002,2]
[343888765,1732996243491,-151.0,0.0002,2]
[343888766,1732996243501,-1000.0,0.0002,20]
[343888767,1732996243511,-217.231118,0.0002,2]
[343888768,1732996243520,-397.285174,0.0002,2]
[343888769,1732996243530,-397.285174,0.0002,2]
[343888770,1732996243539,-397.285174,0.0002,2]
[343888771,1732996243548,-397.285174,0.0002,2]
[343888772,1732996243558,-1525.412715,0.0002,2]
[343888773,1732996243570,-1525.412715,0.0002,2]
[343888774,1732996243580,-1525.412715,0.0002,2]
[343888775,1732996243589,-1525.412715,0.0002,2]
[343888776,1732996243606,-3833.28649513,0.0002,2]
[343888777,1732996243618,-2091.3749014,0.0002,2]
[343888778,1732996243630,-854.12,0.0002,2]
[343888805,1732996864855,-1550.0889567,0.00018249,2]
[343888806,1732996864881,-5000.0,0.00018433,2]
[343888807,1732996864907,-2123.9435656,0.00018993,2]
[343888808,1732996864932,-251.633215,0.00018997,2]
[343888809,1732996864958,-334.18031096,0.00019945,2]
[343888810,1732996864984,-509.09990257,0.00019977,2]
[343888811,1732996865010,-300.0,0.00019987,2]
[343888812,1732996865035,-300.0,0.00019988,2]
[343888813,1732996865059,-320.05404917,0.0001999,3]
[343888855,1732997432335,-4078.0,0.00018,2]
[343888857,1732997432345,-187.7907319,0.00019887,2]
[343888859,1732997432355,-267.34424876,0.00019945,2]
[343888860,1732997432364,-445.46241474,0.00019945,2]
[343888862,1732997432374,-300.0,0.00019998,2]
[343888864,1732997432384,-300.0,0.00019998,2]
[343888865,1732997432393,-321.37027559,0.00019999,2]
[343888866,1732997432403,-180.35402169,0.00019999,2]
[343888867,1732997432413,-177.73526571,0.00019999,2]
[343888868,1732997432422,-164.59050101,0.00019999,2]
[343888869,1732997432435,-500.0,0.00019999,2]
[343888870,1732997432443,-500.0,0.00019999,2]
[343888871,1732997432453,-431.2228857,0.00019999,2]
[343888872,1732997432462,-1169.27083333,0.0002,2]
[343888873,1732997432471,-163.49,0.0002,2]
[343888875,1732997432482,-24977.70926334,0.0002,2]
[343888876,1732997432499,-8786.19309906,0.0002,2]
[343888877,1732997432513,-698.53021,0.0002,2]
[343888878,1732997432524,-878.8135,0.0002,2]
[343888884,1732997438343,-1845.0,0.0002,2]
[343888893,1732997440341,-2557.5,0.0002,2]
[343888913,1732997446455,-2644.99868321,0.0002,2]
[343888928,1732998090406,677.6,0.00026,60]
[343888965,1732998632525,-450.63,0.00019268,7]
[343888966,1732998632535,-110.83296804,0.00019998,2]
[343888967,1732998632587,-189.16703196,0.00019998,2]
[343888968,1732998632596,-300.0,0.00019998,2]
[343888969,1732998632605,-10.83296804,0.00019999,2]
[343888981,1732998638610,-319.52645552,0.00019999,2]
[343888983,1732998638619,-107.07354448,0.00019999,2]
[343888993,1732998640530,-7887.55594005,0.00019999,2]
[343888994,1732998640540,-205.88859525,0.0002,2]
[343888995,1732998640550,-1169.27083333,0.0002,2]
[343888996,1732998640560,-4027.98463269,0.0002,2]
[343888997,1732998640572,-7389.40000001,0.0002,2]
[343888998,1732998640585,-484.79,0.0002,2]
[343889036,1732999838219,1000.0,0.00026,60]
[343889040,1732999838768,-350.13752948,0.00019963,2]
[343889041,1732999838777,-300.0,0.00019999,2]
[343889042,1732999838787,-224.95919291,0.00019999,2]
[343889043,1732999838796,-461.73452462,0.00019999,2]
[343889044,1732999838806,-154.72014751,0.00019999,2]
[343889045,1732999838816,-205.88859525,0.0002,2]
[343889046,1732999838825,-1169.27083333,0.0002,2]
[343889047,1732999838835,-1000.0,0.0002,20]
[343889048,1732999838845,-5000.0,0.0002,2]
[343889049,1732999838856,-223.0891769,0.0002,2]
[343889050,1732999838873,-8826.5,0.0002,2]
[343889051,1732999838886,-607.21,0.0002,2]
[343889052,1732999838898,-36331.01935514,0.0002,2]
[343889073,1732999843639,-8069.65144328,0.0002,2]
[343889075,1732999843651,-3457.98332574,0.0002,2]
[343889103,1732999846613,-1848.79999999,0.0002,2]
[343889111,1733000480737,803.57390871,0.00026,60]
[343889128,1733001031996,-211.08077635,0.00019086,2]
[343889141,1733001032113,-300.0,0.00019095,2]
[343889143,1733001032123,-300.0,0.00019095,2]
[343889145,1733001032134,-4536.62853694,0.00019096,2]
[343889146,1733001032149,-5712.29995926,0.00019096,2]
[343889148,1733001032158,-206.9350938,0.00019097,2]
[343889150,1733001032168,-177.32,0.0001999,2]
[343889152,1733001032177,-150.01,0.00019999,2]
[343889153,1733001032188,-1436.56615991,0.00019999,2]
[343889154,1733001032197,-293.43996837,0.00019999,2]
[343889155,1733001032207,-500.0,0.00019999,2]
[343889156,1733001032216,-253.06884315,0.00019999,2]
[343889157,1733001032225,-500.0,0.00019999,2]
[343889158,1733001032234,-394.88470605,0.00019999,2]
[343889159,1733001032244,-500.0,0.00019999,2]
[343889160,1733001032254,-440.14651137,0.00019999,2]
[343889161,1733001032264,-500.0,0.00019999,2]
[343889162,1733001032274,-205.88859525,0.0002,2]
[343889163,1733001032286,-1169.27083333,0.0002,2]
[343889164,1733001032295,-1514.59650295,0.0002,2]
[343889165,1733001032305,-213.87539904,0.0002,2]
[343889166,1733001032315,-738.98803562,0.0002,2]
[343889167,1733001032325,-28546.75581721,0.0002,2]
[343889168,1733001032337,-3140.24428382,0.0002,2]
[343889174,1733001037782,-151.0,0.000197,2]
[343889176,1733001037791,-524.0532238,0.0002,2]
[343889179,1733001037832,-1088.94,0.0002,2]
[343889180,1733001037845,-428.08,0.0002,2]
[343889181,1733001037856,-19053.0,0.0002,2]
[343889182,1733001037884,-656.26578796,0.0002,2]
[343889192,1733001039790,-265.57496343,0.00019999,2]
[343889193,1733001039800,-1197.13846659,0.00019999,2]
[343889194,1733001039810,-125423.56607638,0.0002,2]
[343889195,1733001039822,-1370.0,0.0002,2]
[343889196,1733001039835,-40342.09481083,0.0002,2]
[343889197,1733001039845,-617.0,0.0002,2]
[343889198,1733001039857,-151.0,0.000202,4]
[343889199,1733001039867,-927.8404,0.000202,2]
[343889200,1733001039877,-151.0,0.000203,4]
[343889202,1733001039887,-11324.32960106,0.00020377,2]
[343889203,1733001039899,-54241.78781805,0.00020377,2]
[343889204,1733001039910,-212.1357018,0.000204,2]
[343889205,1733001039919,-215.6586395,0.000204,2]
[343889206,1733001039929,-308.2581861,0.000204,2]
[343889207,1733001039939,-412.3981681,0.000204,2]
[343889208,1733001039949,-155.1131882,0.000204,2]
[343889209,1733001039959,-153.0,0.000204,2]
[343889210,1733001039968,-153.0,0.000204,2]
[343889211,1733001039978,-153.0,0.000204,2]
[343889212,1733001039988,-153.0,0.000204,2]
[343889213,1733001039998,-153.0,0.000204,2]
[343889214,1733001040008,-153.0,0.000204,2]
[343889215,1733001040018,-155.3073661,0.000204,2]
[343889216,1733001040028,-310.00339292,0.00020491,2]
[343889217,1733001040038,-153.0,0.000205,2]
[343889218,1733001040048,-400.73434,0.00020521,2]
[343889219,1733001040057,-400.73434,0.00020712,2]
[343889220,1733001040067,-420.0,0.00020811,2]
[343889221,1733001040077,-151.0,0.000209,4]
[343889222,1733001040087,-400.73434,0.00020904,2]
[343889223,1733001040097,-1000.0,0.00021,21]
[343889224,1733001040109,-3914.89531937,0.00021,5]
[343889225,1733001040119,-3000.0,0.00021,2]
[343889226,1733001040127,-152.89351,0.00021,2]
[343889227,1733001040137,-224.851384,0.00021,2]
[343889228,1733001040147,-224.851384,0.00021,2]
[343889229,1733001040157,-564.609247,0.00021,2]
[343889230,1733001040167,-564.609247,0.00021,2]
[343889233,1733001040295,-420.0,0.00021004,2]
[343889234,1733001040304,-3000.0,0.0002101,2]
[343889235,1733001040314,-3000.0,0.0002102,2]
[343889236,1733001040323,-252.902598,0.0002102,2]
[343889237,1733001040334,-252.902598,0.0002102,2]
[343889238,1733001040344,-151.0,0.0002102,2]
[343889239,1733001040355,-153.245058,0.0002102,2]
[343889240,1733001040365,-151.0,0.0002102,2]
[343889241,1733001040375,-151.0,0.0002102,2]
[343889242,1733001040385,-151.0,0.0002102,2]
[343889243,1733001040395,-151.0,0.0002102,2]
[343889244,1733001040404,-151.0,0.0002102,2]
[343889245,1733001040413,-151.0,0.0002102,2]
[343889246,1733001040423,-224.851384,0.0002102,2]
[343889247,1733001040432,-224.851384,0.0002102,2]
[343889248,1733001040442,-564.609247,0.0002102,2]
[343889249,1733001040452,-564.609247,0.0002102,2]
[343889250,1733001040462,-3000.0,0.0002103,2]
[343889251,1733001040474,-3000.0,0.0002104,2]
[343889252,1733001040484,-224.851384,0.0002104,2]
[343889253,1733001040495,-224.851384,0.0002104,2]
[343889254,1733001040504,-564.609247,0.0002104,2]
[343889255,1733001040514,-564.609247,0.0002104,2]
[343889256,1733001040523,-3000.0,0.0002105,2]
[343889257,1733001040533,-252.902598,0.0002105,2]
[343889258,1733001040543,-252.902598,0.0002105,2]
[343889259,1733001040553,-158.0464,0.0002105,2]
[343889260,1733001040563,-151.0,0.0002105,2]
[343889261,1733001040573,-259.348097,0.0002105,2]
[343889262,1733001040583,-151.0,0.0002105,2]
[343889263,1733001040594,-195.058778,0.0002105,2]
[343889264,1733001040605,-151.0,0.0002105,2]
[343889265,1733001040615,-151.0,0.0002105,2]
[343889266,1733001040624,-3000.0,0.0002106,2]
[343889267,1733001040634,-224.851384,0.0002106,2]
[343889268,1733001040643,-224.851384,0.0002106,2]
[343889269,1733001040653,-564.609247,0.0002106,2]
[343889270,1733001040664,-564.609247,0.0002106,2]
[343889271,1733001040674,-3000.0,0.0002107,2]
[343889272,1733001040683,-3000.0,0.0002108,2]
[343889273,1733001040693,-252.902598,0.0002108,2]
[343889274,1733001040702,-252.902598,0.0002108,2]
[343889275,1733001040711,-151.0,0.0002108,2]
[343889276,1733001040721,-151.0,0.0002108,2]
[343889277,1733001040730,-151.0,0.0002108,2]
[343889278,1733001040740,-3000.0,0.0002109,2]
[343889279,1733001040750,-224.851384,0.0002109,2]
[343889280,1733001040759,-224.851384,0.0002109,2]
[343889281,1733001040769,-564.609247,0.0002109,2]
[343889282,1733001040778,-564.609247,0.0002109,2]
[343889283,1733001040787,-400.73434,0.00021096,2]
[343889284,1733001040796,-3000.0,0.000211,2]
[343889285,1733001040806,-331.45155007,0.000211,2]
[343889286,1733001040815,-3000.0,0.0002111,2]
[343889287,1733001040824,-252.902598,0.0002111,2]
[343889288,1733001040834,-252.902598,0.0002111,2]
[343889289,1733001040843,-151.0,0.0002111,2]
[343889290,1733001040855,-151.0,0.0002111,2]
[343889291,1733001040864,-248.657222,0.0002111,2]
[343889292,1733001040874,-224.851384,0.0002111,2]
[343889293,1733001040883,-224.851384,0.0002111,2]
[343889294,1733001040893,-564.609247,0.0002111,2]
[343889295,1733001040903,-564.609247,0.0002111,2]
[343889296,1733001040913,-3000.0,0.0002112,2]
[343889297,1733001040922,-3000.0,0.0002113,2]
[343889298,1733001040932,-3000.0,0.0002114,2]
[343889299,1733001040941,-252.902598,0.0002114,2]
[343889300,1733001040950,-252.902598,0.0002114,2]